bitfinex/quotes_SOLUSD_20230120
["timestamp","ask_amount","ask_price","bid_price","bid_amount"]
[1674229896297,17.96,21.418,21.406,10.0]
[1674229896507,20.0,21.417,21.406,10.0]
[1674229896716,20.0,21.419,21.406,10.0]
[1674229896929,0.96,21.418,21.406,45.04]
[1674229897133,0.96,21.418,21.406,10.0]
[1674229898738,0.96,21.418,21.408,10.0]
[1674229902408,0.96,21.418,21.41,10.0]
[1674229902614,20.0,21.423,21.411,17.0]
[1674229902832,20.0,21.426,21.411,17.0]
[1674229903043,35.01,21.425,21.41,10.0]
[1674229903244,20.0,21.424,21.41,10.0]
[1674229903779,20.0,21.426,21.41,10.0]
[1674229904001,52.97,21.425,21.41,10.0]
[1674229904308,20.0,21.424,21.41,10.0]
[1674229904522,35.98,21.423,21.41,10.0]
[1674229904734,20.0,21.422,21.41,10.0]
[1674229905042,0.96,21.421,21.41,10.0]
[1674229905874,20.0,21.424,21.41,10.0]
[1674229906080,35.98,21.423,21.41,10.0]
[1674229906293,20.0,21.422,21.41,10.0]
[1674229906616,0.96,21.421,21.41,10.0]
[1674229907440,35.02,21.423,21.41,10.0]
[1674229907654,20.96,21.422,21.41,10.0]
[1674229908305,20.0,21.421,21.41,9.88851654]
[1674229908618,0.96,21.42,21.41,9.88851654]
[1674229909230,20.0,21.422,21.41,9.88851654]
[1674229909451,0.96,21.421,21.41,9.88851654]
[1674229910599,0.96,21.42,21.41,9.88851654]
[1674229910805,20.0,21.422,21.41,9.88851654]
[1674229911136,0.96,21.421,21.41,9.88851654]
[1674229911980,35.02,21.423,21.41,9.88851654]
[1674229912189,20.0,21.422,21.41,9.88851654]
[1674229912416,0.96,21.421,21.41,9.88851654]
[1674229912931,17.0,21.422,21.41,9.88851654]
[1674229913142,20.96,21.421,21.41,9.88851654]
[1674229913760,20.0,21.42,21.41,9.88851654]
[1674229914090,0.96,21.419,21.41,9.88851654]
[1674229914910,20.0,21.422,21.41,9.88851654]
[1674229915120,0.96,21.421,21.41,9.88851654]
[1674229915756,20.0,21.423,21.41,9.88851654]
[1674229916175,20.0,21.425,21.412,10.0]
[1674229917007,35.01,21.426,21.412,10.0]
[1674229917217,116.3001,21.428,21.413,52.03]
[1674229917440,116.3001,21.428,21.414,10.0]
[1674229917641,20.0,21.427,21.415,17.0]
[1674229918067,20.0,21.427,21.416,10.0]
[1674229918816,52.01,21.426,21.412,10.0]
[1674229919125,20.96,21.425,21.412,10.0]
[1674229919345,35.01,21.424,21.412,10.0]
[1674229919659,20.96,21.423,21.412,10.0]
[1674229920090,20.96,21.423,21.413,17.0]
[1674229920271,20.0,21.422,21.413,17.0]
[1674229920476,35.01,21.425,21.412,10.0]
[1674229920814,20.0,21.424,21.412,10.0]
[1674229921006,0.96,21.423,21.413,17.0]
[1674229921218,35.01,21.427,21.414,10.0]
[1674229921645,35.01,21.427,21.415,17.0]
[1674229922069,35.01,21.427,21.416,10.0]
[1674229922477,0.96,21.426,21.416,10.0]
[1674229922687,17.96,21.426,21.416,10.0]
[1674229922907,35.01,21.425,21.416,10.0]
[1674229923118,0.96,21.424,21.416,10.0]
[1674229923551,0.96,21.423,21.416,10.0]
[1674229926080,35.01,21.427,21.416,10.0]
[1674229926403,116.3001,21.428,21.416,10.0]
[1674229926591,20.0,21.427,21.414,10.0]
[1674229926799,20.0,21.427,21.412,10.0]
[1674229926800,35.01,21.426,21.412,10.0]
[1674229927014,10.0,21.424,21.411,10.0]
[1674229927339,55.02,21.423,21.411,10.0]
[1674229927560,17.96,21.422,21.406,159.9208]
[1674229927759,55.02,21.421,21.406,124.8808]
[1674229928293,10.96,21.42,21.406,114.8808]
[1674229928479,72.02,21.419,21.406,114.8808]
[1674229928904,0.96,21.418,21.406,114.8808]
[1674229929328,35.98,21.418,21.406,114.8808]
[1674229929641,20.0,21.417,21.406,114.8808]
[1674229929849,19.5,21.417,21.407,10.0]
[1674229930176,0.96,21.416,21.407,10.0]
[1674229937854,20.0,21.419,21.407,10.0]
[1674229938038,0.96,21.418,21.407,10.0]
[1674229938249,17.0,21.42,21.407,10.0]
[1674229938569,20.96,21.419,21.407,10.0]
[1674229939760,20.0,21.418,21.407,10.0]
[1674229940079,117.8615,21.439,21.41,14.87]
[1674229940080,35.01,21.429,21.41,14.87]
[1674229940262,116.3001,21.428,21.411,52.04]
[1674229940471,145.6324,21.427,21.411,52.04]
[1674229940684,35.01,21.427,21.411,52.04]
[1674229941123,116.3001,21.428,21.412,10.0]
[1674229941329,20.0,21.427,21.413,52.03]
[1674229941651,20.0,21.427,21.414,10.0]
[1674229942070,20.0,21.427,21.415,35.03]
[1674229942271,35.97,21.426,21.414,10.0]
[1674229942598,0.96,21.426,21.414,10.0]
[1674229943207,35.01,21.425,21.414,10.0]
[1674229943638,0.96,21.424,21.414,10.0]
[1674229943848,35.01,21.426,21.414,10.0]
[1674229944170,20.96,21.425,21.414,10.0]
[1674229944372,35.01,21.424,21.414,10.0]
[1674229944700,20.96,21.423,21.414,10.0]
[1674229945121,0.96,21.423,21.414,10.0]
[1674229945308,35.01,21.425,21.414,10.0]
[1674229945524,20.96,21.424,21.414,10.0]
[1674229945861,35.02,21.423,21.414,10.0]
[1674229946060,20.96,21.422,21.414,10.0]
[1674229947019,0.96,21.422,21.414,10.0]
[1674229947418,20.0,21.424,21.414,10.0]
[1674229947643,35.98,21.423,21.414,10.0]
[1674229947840,20.0,21.422,21.412,10.0]
[1674229948047,17.96,21.421,21.411,10.0]
[1674229948270,20.0,21.42,21.411,10.0]
[1674229948673,0.96,21.419,21.411,10.0]
[1674229952669,20.0,21.42,21.411,10.0]
[1674229952874,20.0,21.425,21.411,10.0]
[1674229953104,35.01,21.424,21.411,10.0]
[1674229953298,20.0,21.423,21.411,10.0]
[1674229953511,35.02,21.422,21.411,10.0]
[1674229953720,20.0,21.421,21.411,10.0]
[1674229954359,0.96,21.42,21.411,10.0]
[1674229955104,0.96,21.419,21.411,10.0]
[1674229957514,58.04387115,21.427,21.412,17.0]
[1674229957515,35.01,21.426,21.412,17.0]
[1674229957704,35.01,21.429,21.412,52.03]
[1674229957916,20.0,21.427,21.413,10.0]
[1674229958237,20.0,21.427,21.414,52.03]
[1674229958570,20.0,21.427,21.415,10.0]
[1674229958759,20.0,21.427,21.417,10.0]
[1674229958970,35.0,21.433,21.417,10.0]
[1674229959183,0.96,21.426,21.417,10.0]
[1674229959391,35.0,21.433,21.417,10.0]
[1674229960037,0.96,21.427,21.417,10.0]
[1674229960239,20.96,21.427,21.417,10.0]
[1674229960452,20.0,21.427,21.418,17.0]
[1674229960657,20.0,21.427,21.419,10.0]
[1674229961195,35.0,21.433,21.419,10.0]
[1674229961196,20.0,21.432,21.419,10.0]
[1674229961407,35.0,21.431,21.419,10.0]
[1674229961619,20.0,21.43,21.419,10.0]
[1674229961813,0.96,21.429,21.419,10.0]
[1674229962023,20.0,21.43,21.419,10.0]
[1674229962240,20.0,21.432,21.419,10.0]
[1674229962560,35.0,21.431,21.419,10.0]
[1674229962774,20.0,21.43,21.419,10.0]
[1674229962967,35.01,21.429,21.419,10.0]
[1674229963174,20.0,21.428,21.419,10.0]
[1674229963512,0.96,21.427,21.419,10.0]
[1674229964556,0.96,21.426,21.419,10.0]
[1674229964759,20.0,21.428,21.419,10.0]
[1674229964971,0.96,21.427,21.419,10.0]
[1674229965386,0.96,21.427,21.417,10.0]
[1674229965925,35.01,21.429,21.417,10.0]
[1674229966118,20.96,21.428,21.417,10.0]
[1674229966777,55.01,21.427,21.417,10.0]
[1674229966960,35.01,21.427,21.417,10.0]
[1674229967169,0.96,21.426,21.417,10.0]
[1674229967823,20.0,21.428,21.417,10.0]
[1674229968009,35.97,21.427,21.417,10.0]
[1674229968873,0.96,21.427,21.417,10.0]
[1674229969809,35.01,21.429,21.417,10.0]
[1674229970009,20.96,21.428,21.417,10.0]
[1674229970745,20.0,21.427,21.417,10.0]
[1674229970961,35.0,21.431,21.417,10.0]
[1674229971278,0.96,21.426,21.417,10.0]
[1674229971797,20.0,21.428,21.417,10.0]
[1674229972009,35.97,21.427,21.417,10.0]
[1674229972439,35.97,21.427,21.415,10.0]
[1674229972656,37.0,21.426,21.413,10.0]
[1674229972992,35.97,21.425,21.413,10.0]
[1674229973174,20.0,21.424,21.413,10.0]
[1674229973379,35.02,21.423,21.413,10.0]
[1674229973579,20.0,21.422,21.413,10.0]
[1674229974129,0.96,21.421,21.413,10.0]
[1674229974524,0.96,21.42,21.413,10.0]
[1674229974736,20.0,21.422,21.413,10.0]
[1674229975047,0.96,21.421,21.413,10.0]
[1674229975889,35.02,21.423,21.413,10.0]
[1674229976096,20.96,21.422,21.413,10.0]
[1674229976768,20.0,21.421,21.413,10.0]
[1674229976962,35.01,21.425,21.413,10.0]
[1674229977277,0.96,21.42,21.413,10.0]
[1674229977682,20.0,21.422,21.413,10.0]
[1674229977900,0.96,21.421,21.413,10.0]
[1674229978831,35.02,21.423,21.413,10.0]
[1674229979047,20.96,21.422,21.413,10.0]
[1674229979686,0.96,21.422,21.413,10.0]
[1674229980655,35.01,21.427,21.413,10.0]
[1674229981466,35.01,21.427,21.412,10.0]
[1674229981467,10.0,21.426,21.412,10.0]
[1674229981683,35.01,21.425,21.412,10.0]
[1674229981897,0.96,21.424,21.412,10.0]
[1674229982121,35.02,21.423,21.412,10.0]
[1674229982532,0.96,21.422,21.412,10.0]
[1674229982735,35.01,21.427,21.412,10.0]
[1674229982947,17.96,21.426,21.412,10.0]
[1674229983150,35.01,21.425,21.412,10.0]
[1674229983572,0.96,21.424,21.412,10.0]
[1674229983795,35.02,21.423,21.412,10.0]
[1674229984005,0.96,21.422,21.412,10.0]
[1674229984529,35.01,21.425,21.412,10.0]
[1674229984530,0.96,21.421,21.412,10.0]
[1674229986935,35.01,21.427,21.412,10.0]
[1674229987167,35.01,21.427,21.414,10.0]
[1674229987571,35.01,21.427,21.415,17.0]
[1674229987782,111.7954,21.428,21.416,10.0]
[1674229988027,20.0,21.427,21.417,17.0]
[1674229988222,20.0,21.427,21.418,10.0]
[1674229989058,0.96,21.426,21.418,10.0]
[1674229990085,0.96,21.426,21.419,17.0]
[1674229990523,0.96,21.426,21.42,10.0]
[1674229994837,118.5372,21.437,21.42,10.0]
[1674229994838,34.99,21.436,21.42,24.86]
[1674229995023,34.99,21.438,21.422,10.0]
[1674229995234,34.99,21.438,21.423,17.0]
[1674229995462,34.99,21.438,21.424,10.0]
[1674229995863,34.99,21.438,21.425,17.0]
[1674229996073,20.0,21.437,21.426,10.0]
[1674229996303,34.99,21.436,21.426,10.0]
[1674229996811,34.99,21.438,21.426,10.0]
[1674229997022,0.96,21.437,21.426,10.0]
[1674229997250,34.99,21.436,21.426,10.0]
[1674229997576,0.96,21.435,21.426,10.0]
[1674229997963,20.0,21.437,21.426,10.0]
[1674229998180,0.96,21.434,21.426,10.0]
[1674229998386,20.0,21.437,21.426,10.0]
[1674229998596,0.96,21.436,21.426,10.0]
[1674230001139,0.96,21.435,21.426,10.0]
[1674230001330,54.99,21.438,21.426,10.0]
[1674230001541,0.96,21.437,21.426,10.0]
[1674230007442,0.96,21.437,21.424,10.0]
[1674230007661,34.99,21.436,21.42,10.0]
[1674230007848,34.99,21.436,21.417,115.717]
[1674230007849,20.0,21.435,21.417,115.717]
[1674230008067,52.96,21.434,21.417,115.717]
[1674230008397,20.0,21.433,21.418,10.0]
[1674230008706,35.96,21.432,21.418,10.0]
[1674230009023,20.0,21.431,21.418,10.0]
[1674230009227,35.0,21.43,21.418,10.0]
[1674230009442,20.96,21.429,21.418,10.0]
[1674230010051,0.96,21.429,21.417,115.717]
[1674230010277,52.0,21.431,21.417,115.717]
[1674230010594,20.96,21.43,21.417,115.717]
[1674230010815,35.01,21.429,21.417,115.717]
[1674230011015,0.96,21.428,21.417,115.717]
[1674230011337,20.96,21.428,21.414,10.0]
[1674230011529,37.96,21.428,21.414,10.0]
[1674230011966,35.01,21.427,21.414,10.0]
[1674230012385,0.96,21.426,21.414,10.0]
[1674230012909,20.0,21.428,21.414,10.0]
[1674230013125,0.96,21.427,21.414,10.0]
[1674230013866,35.01,21.428,21.414,10.0]
[1674230014062,20.96,21.427,21.414,10.0]
[1674230014790,0.96,21.427,21.414,10.0]
[1674230015125,0.96,21.426,21.414,10.0]
[1674230015439,20.0,21.427,21.414,45.03]
[1674230015751,0.96,21.426,21.414,45.03]
[1674230015957,20.0,21.429,21.414,45.03]
[1674230016282,0.96,21.425,21.414,45.03]
[1674230017316,72.01,21.427,21.414,10.0]
[1674230017523,0.96,21.426,21.414,10.0]
[1674230018085,0.96,21.426,21.414,45.03]
[1674230018261,20.0,21.429,21.414,45.03]
[1674230018595,0.96,21.428,21.416,10.0]
[1674230019638,17.96,21.428,21.416,10.0]
[1674230019834,20.0,21.427,21.416,10.0]
[1674230020050,0.96,21.426,21.416,10.0]
[1674230020371,20.0,21.427,21.416,10.0]
[1674230020680,10.0,21.435,21.416,10.0]
[1674230020681,20.0,21.429,21.416,10.0]
[1674230020895,20.0,21.433,21.417,17.0]
[1674230021090,35.0,21.432,21.417,17.0]
[1674230021299,20.0,21.431,21.417,17.0]
[1674230021512,35.96,21.43,21.417,17.0]
[1674230021737,20.0,21.429,21.418,10.0]
[1674230022169,0.96,21.428,21.418,10.0]
[1674230022791,35.0,21.43,21.418,10.0]
[1674230023007,20.96,21.429,21.418,10.0]
[1674230023538,20.96,21.429,21.416,10.0]
[1674230023728,55.01,21.428,21.416,10.0]
[1674230024061,0.96,21.427,21.416,10.0]
[1674230024269,20.96,21.427,21.416,10.0]
[1674230024906,0.96,21.427,21.416,10.0]
[1674230025620,0.96,21.426,21.416,10.0]
[1674230025829,55.01,21.428,21.416,10.0]
[1674230026154,0.96,21.427,21.416,10.0]
[1674230026356,20.0,21.428,21.416,10.0]
[1674230026564,20.0,21.431,21.416,10.0]
[1674230026794,20.0,21.434,21.416,10.0]
[1674230026995,35.0,21.433,21.416,10.0]
[1674230027197,20.0,21.432,21.416,10.0]
[1674230027410,35.0,21.431,21.416,10.0]
[1674230027742,20.0,21.43,21.416,10.0]
[1674230027929,0.96,21.429,21.416,10.0]
[1674230028456,55.0,21.434,21.418,10.0]
[1674230028687,20.0,21.434,21.419,17.0]
[1674230028878,20.0,21.435,21.42,10.0]
[1674230029087,35.0,21.434,21.421,17.0]
[1674230029820,20.96,21.433,21.421,17.0]
[1674230030150,20.0,21.433,21.422,10.0]
[1674230030358,54.99,21.436,21.424,10.0]
[1674230031624,33.66434827,21.437,21.424,10.0]
[1674230031837,34.98,21.444,21.425,52.01]
[1674230032236,34.97,21.448,21.426,10.0]
[1674230032441,34.97,21.448,21.427,52.01]
[1674230032667,10.0,21.447,21.427,52.01]
[1674230032873,34.98,21.446,21.427,52.01]
[1674230033125,20.0,21.445,21.428,10.0]
[1674230033283,35.94,21.444,21.429,52.01]
[1674230033709,20.0,21.443,21.429,52.01]
[1674230033920,20.0,21.443,21.428,10.0]
[1674230034143,35.94,21.442,21.428,10.0]
[1674230034329,20.0,21.441,21.428,10.0]
[1674230034551,0.96,21.44,21.428,10.0]
[1674230034760,20.0,21.443,21.428,10.0]
[1674230034980,0.96,21.442,21.428,10.0]
[1674230035191,51.98,21.444,21.428,10.0]
[1674230035387,20.96,21.443,21.428,10.0]
[1674230036334,34.98,21.442,21.428,10.0]
[1674230036545,20.96,21.441,21.428,10.0]
[1674230037281,20.0,21.44,21.428,10.0]
[1674230037501,0.96,21.439,21.428,10.0]
[1674230037712,20.0,21.442,21.428,10.0]
[1674230037927,0.96,21.441,21.428,10.0]
[1674230039702,20.0,21.442,21.428,10.0]
[1674230039914,20.0,21.444,21.43,10.0]
[1674230040123,20.0,21.444,21.431,17.0]
[1674230041066,0.96,21.443,21.431,17.0]
[1674230041923,20.0,21.445,21.431,17.0]
[1674230042130,0.96,21.444,21.431,17.0]
[1674230042874,0.96,21.444,21.432,10.0]
[1674230043193,118.1072,21.45,21.433,17.0]
[1674230043404,118.1072,21.45,21.434,35.0]
[1674230043602,20.0,21.449,21.435,17.0]
[1674230043807,20.0,21.449,21.436,44.99]
[1674230044025,20.0,21.449,21.437,17.0]
[1674230044341,20.0,21.449,21.438,34.99]
[1674230044534,20.0,21.449,21.439,10.0]
[1674230044747,20.0,21.449,21.44,17.0]
[1674230044979,20.0,21.454,21.441,10.0]
[1674230045171,34.97,21.453,21.441,10.0]
[1674230045383,20.0,21.452,21.442,17.0]
[1674230045925,20.0,21.454,21.442,17.0]
[1674230046241,54.96,21.456,21.442,17.0]
[1674230047159,34.96,21.456,21.442,17.0]
[1674230047365,343.12458686,21.457,21.443,10.0]
[1674230047589,34.96,21.459,21.444,17.0]
[1674230047815,34.96,21.459,21.445,10.0]
[1674230048420,0.96,21.458,21.445,10.0]
[1674230048630,34.96,21.457,21.445,10.0]
[1674230049057,34.96,21.459,21.446,17.0]
[1674230050653,34.96,21.459,21.447,10.0]
[1674230050862,34.96,21.459,21.448,17.0]
[1674230051079,34.96,21.46,21.448,17.0]
[1674230051266,20.0,21.459,21.448,17.0]
[1674230051483,20.0,21.459,21.449,10.0]
[1674230051794,20.0,21.459,21.45,17.0]
[1674230052011,20.0,21.46,21.449,10.0]
[1674230052866,0.96,21.459,21.449,10.0]
[1674230054841,0.96,21.459,21.447,10.0]
[1674230055584,35.92,21.459,21.447,10.0]
[1674230060859,66.69834827,21.459,21.447,10.0]
[1674230065585,66.69834827,21.459,21.442,34.98]
[1674230065790,66.69834827,21.459,21.441,44.99]
[1674230067176,27.0,21.458,21.441,44.99]
[1674230067376,34.96,21.457,21.441,44.99]
[1674230067589,0.96,21.456,21.441,44.99]
[1674230069067,44.96,21.455,21.44,108.9973]
[1674230069376,14.8,21.45,21.437,34.99]
[1674230069582,20.96,21.449,21.434,45.0]
[1674230069793,55.93,21.449,21.434,45.0]
[1674230070004,17.0,21.448,21.434,45.0]
[1674230070203,55.93,21.449,21.434,10.0]
[1674230070204,54.97,21.449,21.434,10.0]
[1674230070410,0.96,21.448,21.434,10.0]
[1674230073375,0.96,21.448,21.438,10.0]
[1674230074519,34.97,21.451,21.439,17.0]
[1674230074520,20.0,21.45,21.439,17.0]
[1674230074836,20.0,21.45,21.44,10.0]
[1674230075160,20.0,21.452,21.44,10.0]
[1674230075578,20.0,21.452,21.441,17.0]
[1674230075977,0.96,21.451,21.44,10.0]
[1674230076413,52.93,21.451,21.44,10.0]
[1674230076624,20.0,21.45,21.44,10.0]
[1674230076840,34.85,21.45,21.434,45.0]
[1674230077049,52.93,21.449,21.434,10.0]
[1674230077464,35.93,21.449,21.434,10.0]
[1674230078211,34.97,21.449,21.434,10.0]
[1674230078530,179.35866387,21.45,21.438,10.0]
[1674230078725,134.6912,21.45,21.438,10.0]
[1674230078926,19.5,21.45,21.439,17.0]
[1674230079141,19.5,21.45,21.44,10.0]
[1674230079357,19.5,21.45,21.441,17.0]
[1674230079560,34.96,21.455,21.442,10.0]
[1674230080196,20.0,21.454,21.442,10.0]
[1674230080419,0.96,21.453,21.442,10.0]
[1674230082619,0.96,21.452,21.443,17.0]
[1674230082838,20.0,21.455,21.443,17.0]
[1674230083151,30.77834827,21.456,21.443,17.0]
[1674230083369,30.77834827,21.456,21.445,10.0]
[1674230083579,30.77834827,21.456,21.446,17.0]
[1674230084105,30.77834827,21.456,21.447,10.0]
[1674230084523,0.96,21.455,21.447,10.0]
[1674230091771,0.96,21.455,21.445,10.0]
[1674230093253,30.77834827,21.456,21.445,10.0]
[1674230093465,30.77834827,21.456,21.446,17.0]
[1674230093676,50.85009429,21.458,21.447,10.0]
[1674230094199,50.85009429,21.458,21.445,10.0]
[1674230094405,130.47755816,21.458,21.445,10.0]
[1674230094617,0.96,21.457,21.445,10.0]
[1674230096621,0.96,21.457,21.447,10.0]
[1674230096926,0.96,21.457,21.448,17.0]
[1674230097124,0.96,21.457,21.449,10.0]
[1674230103459,20.0,21.459,21.449,10.0]
[1674230103639,20.0,21.459,21.451,10.0]
[1674230104158,20.0,21.46,21.451,10.0]
[1674230105129,0.96,21.459,21.451,10.0]
[1674230106164,0.96,21.459,21.448,34.97]
[1674230106371,34.96,21.458,21.442,44.98]
[1674230106815,0.96,21.457,21.442,44.98]
[1674230107641,0.96,21.457,21.445,17.0]
[1674230108065,0.96,21.457,21.446,10.0]
[1674230108708,20.96,21.457,21.446,10.0]
[1674230121431,20.0,21.457,21.446,10.0]
[1674230122667,0.96,21.456,21.446,10.0]
[1674230122907,20.0,21.457,21.446,10.0]
[1674230123108,20.0,21.457,21.447,17.0]
[1674230123551,20.0,21.457,21.448,10.0]
[1674230124160,0.96,21.456,21.448,10.0]
[1674230124904,20.0,21.457,21.45,10.0]
[1674230125114,20.0,21.457,21.451,17.0]
[1674230125325,20.0,21.464,21.452,10.0]
[1674230125540,20.0,21.464,21.453,17.0]
[1674230126487,0.96,21.463,21.453,17.0]
[1674230127861,0.96,21.463,21.452,10.0]
[1674230130903,0.96,21.463,21.454,10.0]
[1674230131612,20.0,21.465,21.454,10.0]
[1674230131826,0.96,21.464,21.454,10.0]
[1674230135527,31.73834827,21.464,21.454,10.0]
[1674230135730,20.0,21.463,21.454,10.0]
[1674230136144,0.96,21.462,21.454,10.0]
[1674230145101,0.96,21.462,21.452,10.0]
[1674230146052,0.96,21.462,21.451,34.97]
[1674230146270,0.96,21.462,21.452,17.0]
[1674230147734,31.73834827,21.462,21.451,34.97]
[1674230147943,14.87,21.46,21.45,10.0]
[1674230148153,20.0,21.459,21.45,10.0]
[1674230148359,0.96,21.458,21.45,10.0]
[1674230148784,0.96,21.458,21.447,34.98]
[1674230148991,0.96,21.458,21.446,44.98]
[1674230152029,20.0,21.459,21.449,17.0]
[1674230152252,20.0,21.459,21.45,34.97]
[1674230152475,30.77834827,21.462,21.451,27.0]
[1674230152476,20.0,21.46,21.451,27.0]
[1674230152780,20.0,21.461,21.452,34.97]
[1674230152993,20.0,21.461,21.451,27.0]
[1674230153394,20.0,21.461,21.452,10.0]
[1674230153604,20.0,21.461,21.453,17.0]
[1674230153815,0.96,21.46,21.453,17.0]
[1674230154025,0.96,21.46,21.452,10.0]
[1674230156460,15.83,21.46,21.452,10.0]
[1674230156653,20.0,21.459,21.452,10.0]
[1674230157070,0.96,21.458,21.452,10.0]
[1674230157284,20.0,21.459,21.452,10.0]
[1674230157504,20.0,21.459,21.453,17.0]
[1674230158024,20.0,21.459,21.454,10.0]
[1674230158239,20.0,21.461,21.454,10.0]
[1674230159612,0.96,21.46,21.454,10.0]
[1674230160884,15.76,21.46,21.454,10.0]
[1674230161071,15.76,21.46,21.452,10.0]
[1674230161391,20.0,21.459,21.452,10.0]
[1674230161582,0.96,21.458,21.452,10.0]
[1674230163184,20.0,21.459,21.452,10.0]
[1674230163391,20.0,21.459,21.454,10.0]
[1674230163593,20.0,21.461,21.454,10.0]
[1674230163811,20.0,21.461,21.456,10.0]
[1674230164971,0.96,21.46,21.456,10.0]
[1674230165578,0.96,21.46,21.454,10.0]
[1674230168546,0.96,21.46,21.452,10.0]
[1674230169072,60.49746387,21.46,21.451,10.0]
[1674230169279,20.0,21.459,21.446,44.98]
[1674230169592,0.96,21.458,21.446,10.0]
[1674230171906,34.96,21.457,21.446,10.0]
[1674230172095,20.96,21.456,21.441,115.5686]
[1674230172300,14.85,21.45,21.44,10.0]
[1674230172518,20.0,21.449,21.44,10.0]
[1674230172855,0.96,21.448,21.44,10.0]
[1674230174634,0.96,21.448,21.441,17.0]
[1674230174827,0.96,21.448,21.442,10.0]
[1674230175897,20.0,21.451,21.442,10.0]
[1674230176096,0.96,21.45,21.442,10.0]
[1674230176507,0.96,21.449,21.442,10.0]
[1674230178505,20.96,21.451,21.442,10.0]
[1674230178712,14.87,21.45,21.44,10.0]
[1674230178943,20.0,21.449,21.44,10.0]
[1674230179155,20.96,21.449,21.44,10.0]
[1674230179365,20.0,21.449,21.44,10.0]
[1674230179548,0.96,21.448,21.44,10.0]
[1674230179772,0.96,21.448,21.439,10.0]
[1674230179973,34.98,21.447,21.439,10.0]
[1674230180183,34.98,21.447,21.432,45.0]